bitfinex/quotes_SOLUSD_20260302
["timestamp","ask_amount","ask_price","bid_price","bid_amount"]
[1772418856511,8.81905866,84.38,84.344,51.65921806]
[1772418856693,8.81905866,84.38,84.345,0.28432314]
[1772418857112,8.81905866,84.37,84.344,51.65921806]
[1772418858115,11.85269471,84.369,84.344,39.80309239]
[1772418858315,2.65029945,84.368,84.344,51.65927516]
[1772418858613,2.65029945,84.368,84.344,36.99163533]
[1772418858795,2.65029945,84.368,84.345,11.85606734]
[1772418858995,2.65029945,84.388,84.346,2.87920573]
[1772418860315,2.65029945,84.386,84.347,14.4506688]
[1772418860622,2.65029945,84.386,84.348,2.59488259]
[1772418861819,2.65029945,84.379,84.347,11.85578621]
[1772418863423,2.65029945,84.377,84.347,11.85578621]
[1772418863623,2.65029945,84.379,84.347,11.85578621]
[1772418863805,2.65029945,84.378,84.347,11.85578621]
[1772418864228,11.85129001,84.379,84.347,11.85578621]
[1772418864229,8.81905866,84.39,84.348,2.59488259]
[1772418864433,8.81905866,84.4,84.351,2.87920573]
[1772418864720,2.65029945,84.409,84.351,2.87920573]
[1772418864904,2.65029945,84.407,84.351,2.87920573]
[1772418865905,8.81905866,84.39,84.356,2.87920573]
[1772418866224,2.65029945,84.379,84.352,11.85508345]
[1772418866608,2.65029945,84.389,84.353,2.59488259]
[1772418867008,11.46935811,84.38,84.352,11.85508345]
[1772418867215,2.65029945,84.38,84.352,11.85508345]
[1772418868018,2.65029945,84.369,84.342,11.85646189]
[1772418869304,2.65029945,84.369,84.337,11.85719197]
[1772418869506,2.65029945,84.367,84.322,0.28432314]
[1772418869702,8.81905866,84.36,84.326,2.87920573]
[1772418870031,2.65029945,84.359,84.326,2.87920573]
[1772418871515,11.46935811,84.38,84.336,2.59488259]
[1772418871714,23.3205383,84.38,84.336,2.59488259]
[1772418872532,2.65029945,84.369,84.336,2.59488259]
[1772418872909,41.47905409,84.38,84.327,41.50509326]
[1772418872910,8.81905866,84.36,84.327,11.85859807]
[1772418873114,2.65029945,84.349,84.318,2.59488259]
[1772418873724,2.65029945,84.349,84.32,2.59488259]
[1772418875328,2.65029945,84.349,84.321,11.85944189]
[1772418876438,2.65029945,84.367,84.322,2.87920573]
[1772418876732,11.85311618,84.366,84.327,2.59488259]
[1772418877113,14.50341563,84.366,84.327,2.59488259]
[1772418877509,14.50341563,84.366,84.328,41.50460107]
[1772418877812,14.50341563,84.366,84.329,2.59488259]
[1772418878620,14.50341563,84.366,84.331,2.59488259]
[1772418879115,2.65029945,84.365,84.331,2.59488259]
[1772418879328,11.85086866,84.382,84.334,2.87920573]
[1772418879633,2.65029945,84.381,84.334,2.87920573]
[1772418880126,2.65029945,84.379,84.334,2.87920573]
[1772418880321,2.65029945,84.369,84.334,2.87920573]
[1772418880935,2.65029945,84.369,84.336,2.87920573]
[1772418881427,11.85187652,84.375,84.336,2.87920573]
[1772418881625,2.65029945,84.378,84.336,2.87920573]
[1772418882633,14.50173221,84.378,84.336,2.87920573]
[1772418883135,2.65029945,84.378,84.336,2.87920573]
[1772418883429,2.65029945,84.378,84.327,3.69383402]
[1772418883430,11.84932399,84.393,84.34,3.69383402]
[1772418883630,11.84932399,84.393,84.341,2.87920573]
[1772418883836,8.81431823,84.39,84.341,2.87920573]
[1772418884839,11.84761263,84.406,84.346,2.87920573]
[1772418885742,14.49791208,84.406,84.346,2.87920573]
[1772418885941,14.49791208,84.406,84.351,2.87920573]
[1772418887221,8.81431823,84.4,84.351,2.87920573]
[1772418887422,2.79142236,84.389,84.351,2.87920573]
[1772418888311,2.79142236,84.389,84.356,0.28432314]
[1772418888723,11.85002607,84.388,84.356,0.28432314]
[1772418889034,2.79142236,84.387,84.356,0.28432314]
[1772418889420,8.81431823,84.37,84.348,11.85561542]
[1772418889621,2.79142236,84.371,84.348,11.85561542]
[1772418890317,20.66687245,84.37,84.345,2.73473946]
[1772418891439,20.66687245,84.37,84.345,6.42857348]
[1772418892334,2.79142236,84.379,84.346,2.73473946]
[1772418892827,8.81431823,84.37,84.346,2.73473946]
[1772418893632,2.79142236,84.369,84.343,3.69383402]
[1772418893933,2.79142236,84.369,84.335,11.8573885]
[1772418894119,2.79142236,84.369,84.338,3.69383402]
[1772418894938,11.85283519,84.368,84.339,11.8569108]
[1772418895141,2.79142236,84.377,84.343,2.73473946]
[1772418895324,11.85171138,84.376,84.343,2.73473946]
[1772418895528,8.81431823,84.38,84.343,2.73473946]
[1772418895837,2.79142236,84.379,84.343,2.73473946]
[1772418896618,20.66546878,84.38,84.342,3.69383402]
[1772418896619,2.79142236,84.369,84.342,3.69383402]
[1772418897033,2.79142236,84.367,84.339,11.8569108]
[1772418897241,2.79142236,84.367,84.342,3.69383402]
[1772418897741,8.81431823,84.38,84.343,2.73473946]
[1772418897946,2.79142236,84.379,84.343,2.73473946]
[1772418899138,11.85143046,84.378,84.344,11.85620791]
[1772418899342,11.85143046,84.378,84.345,2.73473946]
[1772418899927,2.79142236,84.369,84.329,2.73473946]
[1772418900144,8.81431823,84.37,84.332,3.0190626]
[1772418900334,8.81431823,84.38,84.332,3.0190626]
[1772418900727,11.85129001,84.379,84.332,3.0190626]
[1772418900927,11.60574059,84.37,84.332,3.0190626]
[1772418901125,2.79142236,84.357,84.326,0.28432314]
[1772418901435,2.79142236,84.357,84.325,11.85887933]
[1772418901638,2.79142236,84.339,84.305,2.73473946]
[1772418902244,2.79142236,84.348,84.307,2.73473946]
[1772418902447,2.79142236,84.365,84.327,2.73473946]
[1772418903050,2.79142236,84.364,84.327,2.73473946]
[1772418903345,2.79142236,84.362,84.329,2.73473946]
[1772418903644,8.81431823,84.36,84.329,2.73473946]
[1772418903850,2.79142236,84.368,84.329,2.73473946]
[1772418904045,2.79142236,84.349,84.326,3.69383402]
[1772418904233,9.33955496,84.34,84.311,11.86074109]
[1772418905932,9.33940199,84.33,84.297,2.73473946]
[1772418906252,11.85593303,84.346,84.299,2.73473946]
[1772418906436,0.52493254,84.347,84.298,11.86267764]
[1772418906437,8.81431823,84.35,84.307,2.73473946]
[1772418907247,9.3391013,84.37,84.317,2.73473946]
[1772418907831,8.81431823,84.36,84.317,2.73473946]
[1772418908038,8.81431823,84.35,84.319,2.73473946]
[1772418909930,8.81431823,84.37,84.322,3.0190626]
[1772418910137,0.52411731,84.359,84.326,3.69383402]
[1772418910343,8.81431823,84.35,84.326,3.69383402]
[1772418910855,8.81431823,84.35,84.323,11.8591606]
[1772418911043,0.52411731,84.352,84.323,11.8591606]
[1772418911650,0.52411731,84.352,84.324,2.73473946]
[1772418912443,0.5233862,84.339,84.309,11.86112989]
[1772418912754,8.81431823,84.33,84.309,11.86112989]
[1772418912957,9.33734516,84.34,84.309,11.86112989]
[1772418913132,9.33734516,84.34,84.31,2.64178321]
[1772418914760,8.81431823,84.32,84.299,14.50432013]
[1772418914957,8.81431823,84.34,84.3,2.64178321]
[1772418915646,8.81431823,84.33,84.3,2.64178321]
[1772418915846,8.81431823,84.35,84.303,2.92610635]
[1772418916454,11.8555051,84.349,84.303,2.92610635]
[1772418916757,8.81431823,84.34,84.305,2.64178321]
[1772418916940,8.81431823,84.33,84.305,2.64178321]
[1772418917345,8.81431823,84.33,84.304,11.86183336]
[1772418917946,8.81431823,84.33,84.304,14.59966501]
[1772418919558,11.85705138,84.338,84.304,14.59966501]
[1772418919857,0.52029741,84.337,84.304,14.59966501]
[1772418920459,8.81431823,84.33,84.305,2.73783165]
[1772418921260,8.81431823,84.34,84.306,0.28432314]
[1772418921442,8.81431823,84.35,84.307,2.73783165]
[1772418921643,8.81431823,84.35,84.309,2.73783165]
[1772418922846,11.8555051,84.349,84.309,2.73783165]
[1772418923462,8.81431823,84.35,84.309,2.73783165]
[1772418923668,8.81431823,84.36,84.316,3.69383402]
[1772418923962,8.81431823,84.36,84.317,2.73783165]
[1772418924862,8.81431823,84.33,84.302,2.73783165]
[1772418925264,0.5184096,84.329,84.299,11.86250982]
[1772418925472,8.81431823,84.32,84.299,11.86250982]
[1772418925944,0.5184096,84.329,84.296,2.73783165]
[1772418926140,0.51810749,84.328,84.296,2.73783165]
[1772418928350,8.81431823,84.34,84.301,3.02215479]
[1772418928551,0.51751364,84.339,84.301,3.02215479]
[1772418928852,9.33183187,84.32,84.293,2.73783165]
[1772418929054,8.81431823,84.32,84.295,2.73783165]
[1772418930968,8.81431823,84.31,84.294,11.86324056]
[1772418931167,11.85972319,84.319,84.294,11.86324056]
[1772418931562,11.85972319,84.319,84.295,2.73783165]
[1772418932569,11.85972319,84.319,84.272,29.66554707]
[1772418932570,8.81431823,84.31,84.285,2.73783165]
[1772418932762,8.81431823,84.3,84.274,2.73783165]
[1772418932962,8.81431823,84.3,84.276,2.73783165]
[1772418933151,8.81431823,84.31,84.276,2.73783165]
[1772418933554,11.85999275,84.318,84.276,2.73783165]
[1772418933869,8.81431823,84.32,84.286,2.73783165]
[1772418934173,8.81431823,84.31,84.286,2.73783165]
[1772418936566,8.8261158,84.31,84.287,11.86422579]
[1772418936870,8.8261158,84.31,84.287,14.60205744]
[1772418938176,8.8261158,84.31,84.287,2.73783165]
[1772418938353,11.86002241,84.317,84.287,2.73783165]
[1772418938972,0.51474177,84.309,84.279,2.73783165]
[1772418941655,11.86127057,84.308,84.28,11.8652112]
[1772418941870,11.86127057,84.308,84.281,2.73783165]
[1772418942070,8.8261158,84.29,84.267,11.86698509]
[1772418942259,8.8261158,84.29,84.254,29.67211365]
[1772418942260,8.8261158,84.28,84.265,11.86722789]
[1772418942461,4.22309787,84.29,84.263,2.73783165]
[1772418942671,3.70937824,84.29,84.27,11.8666192]
[1772418942878,3.70937824,84.29,84.265,11.86721881]
[1772418943283,3.70937824,84.29,84.27,11.8666192]
[1772418943575,3.70937824,84.29,84.271,2.73783165]
[1772418943980,3.70937824,84.29,84.27,11.8666192]
[1772418944164,3.70937824,84.28,84.269,11.37911697]
[1772418944679,16.08654245,84.29,84.269,11.37911697]
[1772418944874,3.70937824,84.28,84.269,11.37911697]
[1772418945079,3.70937824,84.28,84.251,2.73783165]
[1772418945272,3.70937824,84.28,84.257,11.86833081]
[1772418945677,3.70937824,84.28,84.257,14.67060054]
[1772418945995,3.70937824,84.28,84.26,12.06790916]
[1772418947288,3.70937824,84.29,84.261,2.80226973]
[1772418948681,3.70937824,84.29,84.263,2.80226973]
[1772418949278,0.28432314,84.319,84.263,2.80226973]
[1772418949580,3.70937824,84.31,84.267,2.80226973]
[1772418950374,3.70937824,84.3,84.267,2.80226973]
[1772418950590,3.70937824,84.31,84.267,2.80226973]
[1772418950791,3.70937824,84.3,84.269,2.80226973]
[1772418951084,3.70937824,84.29,84.269,2.80226973]
[1772418952177,3.70937824,84.3,84.271,2.80226973]
[1772418952687,3.70937824,84.31,84.271,2.80226973]
[1772418952876,11.86086664,84.311,84.271,2.80226973]
[1772418953278,11.86025667,84.316,84.271,2.80226973]
[1772418953586,3.70937824,84.31,84.271,2.80226973]
[1772418954881,3.70937824,84.31,84.273,2.80226973]
[1772418955185,11.86025667,84.316,84.277,2.80226973]
[1772418956090,3.70937824,84.31,84.279,2.80226973]
[1772418956494,3.70937824,84.3,84.274,2.80226973]
[1772418956690,3.70937824,84.31,84.274,2.80226973]
[1772418957891,3.70937824,84.33,84.279,3.08659287]
[1772418958478,3.70937824,84.34,84.279,3.08659287]
[1772418958982,3.70937824,84.33,84.279,3.08659287]
[1772418959890,11.8555051,84.349,84.284,3.08659287]
[1772418961880,11.8555051,84.349,84.295,0.28432314]
[1772418962195,3.70937824,84.34,84.304,2.80226973]
[1772418962390,5.36086188,84.387,84.288,3.69383402]
[1772418962391,3.70937824,84.37,84.316,2.80226973]
[1772418962597,41.47853189,84.381,84.326,2.80226973]
[1772418962793,3.70937824,84.38,84.326,2.80226973]
[1772418963175,11.85100911,84.381,84.332,2.80226973]
[1772418963396,11.8504136,84.386,84.336,2.80226973]
[1772418963892,11.85269471,84.369,84.336,2.80226973]
[1772418964091,3.70937824,84.36,84.328,2.80226973]
[1772418964290,3.70937824,84.34,84.308,29.65286101]
[1772418964491,3.70937824,84.34,84.311,2.80226973]
[1772418966190,15.56615048,84.34,84.312,11.86070784]
[1772418966498,20.67722222,84.34,84.312,14.66297757]
[1772418967403,8.82044998,84.33,84.289,2.80226973]
[1772418967596,8.82044998,84.33,84.288,29.66010169]
[1772418967597,8.82044998,84.32,84.292,2.80226973]
[1772418968294,8.82044998,84.33,84.292,2.80226973]
[1772418970613,8.82044998,84.33,84.297,2.80226973]
[1772418970804,8.82044998,84.32,84.297,2.80226973]
[1772418971207,11.85831683,84.329,84.297,2.80226973]
[1772418971910,11.85831683,84.329,84.298,11.86267764]
[1772418972106,11.85831683,84.329,84.299,2.80226973]
[1772418972314,8.82044998,84.34,84.299,2.80226973]
[1772418973588,8.82044998,84.33,84.299,2.80226973]
[1772418974594,11.85831683,84.329,84.301,2.80226973]
[1772418975792,8.82044998,84.33,84.301,2.80226973]
[1772418976515,8.82044998,84.33,84.302,11.86211477]
[1772418976717,8.82044998,84.33,84.303,2.80226973]
[1772418976917,29.64103703,84.343,84.303,2.80226973]
[1772418976918,20.67728116,84.34,84.303,2.80226973]
[1772418977302,8.82044998,84.34,84.303,2.80226973]
[1772418978518,11.8569108,84.339,84.303,2.80226973]
[1772418978706,8.82044998,84.33,84.304,11.86183336]
[1772418979016,8.82044998,84.33,84.305,2.80226973]
[1772418979399,8.82044998,84.32,84.297,11.8627032]
[1772418979604,8.82044998,84.34,84.298,2.80226973]
[1772418979803,8.82044998,84.33,84.298,2.80226973]
[1772418980824,8.82044998,84.34,84.3,2.80226973]
[1772418981124,8.82044998,84.35,84.306,2.80226973]
[1772418981297,8.82044998,84.36,84.316,2.80226973]
[1772418982800,8.82044998,84.35,84.318,2.80226973]
[1772418983809,11.85495909,84.353,84.318,2.80226973]
[1772418984717,11.854197,84.359,84.318,2.80226973]
[1772418985423,11.854197,84.359,84.32,2.80226973]
[1772418987616,3.70270394,84.36,84.321,41.50804662]
[1772418987822,3.70270394,84.36,84.322,2.80226973]
[1772418988213,15.65460455,84.48,84.324,2.80226973]
[1772418988412,3.70270394,84.39,84.336,2.80226973]
[1772418988620,3.70270394,84.4,84.346,2.80226973]
[1772418988927,3.70270394,84.39,84.346,2.80226973]
[1772418989710,11.84988564,84.389,84.348,2.80226973]
[1772418992226,11.84988564,84.389,84.35,2.80226973]
[1772418993335,11.84988564,84.389,84.352,2.80226973]
[1772418996635,3.70270394,84.38,84.353,11.85494291]
[1772418996842,3.70270394,84.38,84.354,2.80226973]
[1772418997137,41.47459976,84.389,84.354,2.80226973]
[1772418998055,3.70270394,84.38,84.345,6.49610375]
[1772418998344,3.70270394,84.38,84.346,2.80226973]
[1772418998524,3.70066974,84.38,84.346,2.80226973]
[1772418999043,3.70066974,84.38,84.348,2.80226973]
[1772419000246,11.85129001,84.379,84.348,2.80226973]
[1772419000737,3.70066974,84.37,84.348,2.80226973]
[1772419001137,15.55333076,84.37,84.348,2.80226973]
[1772419001344,15.55333076,84.37,84.343,11.85630606]
[1772419001647,15.55333076,84.37,84.343,14.65857579]
[1772419002236,3.70066974,84.36,84.343,2.80226973]
[1772419003846,11.85384809,84.361,84.343,2.80226973]
[1772419004155,11.85384809,84.361,84.34,2.80226973]
[1772419004551,3.70066974,84.36,84.337,3.69383402]
[1772419005068,3.70066974,84.36,84.337,11.85706562]
[1772419005562,3.70066974,84.36,84.337,2.80226973]
[1772419005767,11.85409974,84.359,84.33,2.80226973]
[1772419005969,3.70066974,84.35,84.324,2.80226973]
[1772419007369,11.85409974,84.359,84.324,2.80226973]
[1772419009666,11.85409974,84.359,84.326,2.80226973]
[1772419010364,3.70066974,84.35,84.326,2.80226973]
[1772419013362,3.70066974,84.36,84.326,2.80226973]
[1772419013569,3.70066974,84.36,84.328,2.80226973]
[1772419013968,3.70066974,84.36,84.322,14.66148505]
[1772419014270,3.70066974,84.36,84.323,2.80226973]
[1772419016751,11.85409974,84.359,84.324,11.85901997]
[1772419016959,11.85409974,84.359,84.325,2.80226973]
[1772419018075,41.48934909,84.359,84.325,2.80226973]
[1772419019057,3.70066974,84.35,84.325,2.80226973]
[1772419020480,11.8555051,84.349,84.325,2.80226973]
[1772419020874,11.8555051,84.349,84.327,2.80226973]
[1772419021677,3.70066974,84.37,84.327,2.80226973]
[1772419023480,3.70066974,84.37,84.279,61.8]
[1772419023481,11.85129001,84.379,84.336,2.80226973]
[1772419024885,3.70066974,84.36,84.33,2.80226973]
[1772419025081,3.70066974,84.35,84.33,2.80226973]
[1772419026088,11.8555051,84.349,84.33,2.80226973]
[1772419026387,11.8555051,84.349,84.324,2.80226973]
[1772419027085,11.8555051,84.349,84.32,2.80226973]
[1772419028186,11.8555051,84.349,84.322,2.80226973]
[1772419029583,11.85409974,84.359,84.322,2.80226973]
[1772419029786,3.70066974,84.35,84.322,2.80226973]
[1772419029990,11.8555051,84.349,84.322,2.80226973]
[1772419030488,11.85433735,84.358,84.324,2.80226973]
[1772419031393,3.70066974,84.36,84.324,2.80226973]
[1772419031581,11.85409974,84.359,84.324,2.80226973]
[1772419032091,11.85409974,84.359,84.326,2.80226973]
[1772419033788,3.70066974,84.35,84.32,2.80226973]
[1772419033992,3.70066974,84.34,84.314,2.80226973]
[1772419034171,3.70066974,84.35,84.319,2.80226973]
[1772419034786,0.28432314,84.358,84.319,2.80226973]
[1772419034787,59.24551051,84.395,84.319,2.80226973]
[1772419034976,3.70066974,84.36,84.319,2.80226973]
[1772419035295,3.70066974,84.37,84.327,2.80226973]
[1772419035675,3.70066974,84.36,84.327,2.80226973]
[1772419036288,11.85409974,84.359,84.329,2.80226973]
[1772419037486,3.70066974,84.39,84.331,2.80226973]
[1772419037487,3.70066974,84.37,84.331,2.80226973]
[1772419038278,3.70066974,84.36,84.331,2.80226973]
[1772419038479,3.70066974,84.37,84.331,2.80226973]
[1772419039699,11.85269471,84.369,84.333,2.80226973]
[1772419040282,3.70066974,84.4,84.336,3.08659287]
[1772419042192,3.70066974,84.4,84.341,3.08659287]
[1772419042193,11.84848161,84.399,84.341,3.08659287]
[1772419042602,41.46968565,84.399,84.341,3.08659287]
[1772419044707,3.70066974,84.4,84.346,3.08659287]
[1772419045692,11.84848161,84.399,84.357,2.80226973]
[1772419046600,29.61449178,84.419,84.36,0.28432314]
[1772419046895,0.1,84.42,84.375,2.80226973]
[1772419047097,0.1,84.42,84.387,2.80226973]
[1772419047683,0.1,84.42,84.389,2.80226973]
[1772419049200,0.1,84.42,84.386,2.80226973]
[1772419049201,3.80066974,84.42,84.386,2.80226973]
[1772419050004,0.1,84.42,84.39,2.80226973]
[1772419051688,3.70066974,84.41,84.381,2.80226973]
[1772419051904,2.55410284,84.399,84.332,5.50302345]
[1772419052098,2.55410284,84.397,84.334,5.50302345]
[1772419052301,2.55410284,84.397,84.338,0.28432314]
[1772419053907,2.55410284,84.397,84.344,2.97305205]
[1772419054791,2.55410284,84.395,84.344,2.97305205]
[1772419055904,2.55410284,84.395,84.358,2.68872891]
[1772419056104,2.55410284,84.395,84.366,2.68872891]
[1772419056890,11.84806174,84.402,84.366,2.68872891]
[1772419057090,2.55410284,84.405,84.366,2.68872891]
[1772419057610,0.1,84.42,84.386,2.68872891]
[1772419057903,0.1,84.42,84.398,2.68872891]
[1772419060592,0.1,84.42,84.4,2.68872891]
[1772419062809,0.1,84.42,84.401,14.53692976]
[1772419062990,0.1,84.42,84.402,2.68872891]
[1772419063391,0.1,84.42,84.396,14.53754625]
[1772419063592,2.55410284,84.419,84.389,2.68872891]
[1772419064592,11.84581487,84.418,84.391,2.68872891]
[1772419065095,14.39991771,84.418,84.391,2.68872891]
[1772419065294,2.55410284,84.439,84.397,2.68872891]
[1772419065611,2.55410284,84.437,84.397,2.68872891]
[1772419065817,2.55410284,84.429,84.397,2.68872891]
[1772419067804,11.8444118,84.428,84.399,2.68151309]
[1772419068008,14.49210233,84.428,84.399,2.68151309]
[1772419068202,2.64769053,84.427,84.399,2.68151309]
[1772419068904,11.8444118,84.428,84.399,2.68151309]
[1772419069218,2.64769053,84.426,84.386,2.96583623]
[1772419069820,2.64769053,84.419,84.388,2.68151309]
[1772419071211,2.64769053,84.417,84.388,2.68151309]
[1772419071899,2.64769053,84.417,84.39,2.68151309]
[1772419073198,11.84609552,84.416,84.39,2.68151309]
[1772419073414,14.49378605,84.416,84.39,2.68151309]
[1772419074016,14.49378605,84.416,84.392,2.68151309]
[1772419074204,2.64769053,84.416,84.392,2.68151309]
[1772419075519,14.49392638,84.415,84.392,2.68151309]
[1772419075906,2.64769053,84.414,84.392,2.68151309]
[1772419078223,2.64769053,84.414,84.393,14.53083708]
[1772419078416,2.64769053,84.414,84.394,2.68151309]
[1772419079728,11.84651653,84.413,84.394,2.68151309]
[1772419079921,11.84515088,84.423,84.389,2.68151309]
[1772419081122,2.64769053,84.428,84.397,2.68151309]
[1772419082221,2.64769053,84.428,84.398,11.848622]
[1772419082421,29.60800644,84.437,84.399,2.68151309]
[1772419082422,11.84327185,84.437,84.399,2.68151309]
[1772419082930,14.49096238,84.437,84.399,2.68151309]
[1772419083143,2.64769053,84.436,84.399,2.68151309]
[1772419083509,0.1,84.44,84.409,2.68151309]
[1772419083706,2.64769053,84.462,84.436,2.68151309]
[1772419084033,2.64769053,84.462,84.401,3.69383402]
[1772419084034,0.1,84.48,84.445,2.68151309]
[1772419084227,11.83500604,84.496,84.459,2.68151309]
[1772419084736,11.83543223,84.493,84.459,2.68151309]
[1772419084933,2.64769053,84.469,84.403,11.84792009]
[1772419085231,3.69657167,84.48,84.409,2.68151309]
[1772419085232,3.69657167,84.45,84.409,2.68151309]
[1772419085637,3.69657167,84.44,84.409,2.68151309]
[1772419085823,3.69657167,84.45,84.409,2.68151309]
[1772419086025,3.69657167,84.44,84.409,2.68151309]
[1772419086228,11.84146644,84.449,84.41,11.84693756]
[1772419086529,11.84146644,84.449,84.411,2.68151309]
[1772419087030,2.64769053,84.448,84.411,2.68151309]
[1772419087407,2.64769053,84.448,84.415,2.68151309]
[1772419087614,2.14769053,84.448,84.417,2.68151309]
[1772419088935,3.69657167,84.44,84.417,2.68151309]
[1772419089112,3.69657167,84.43,84.402,2.68151309]
[1772419089735,2.64769053,84.439,84.404,2.68151309]
[1772419090340,3.69657167,84.44,84.406,2.68151309]
[1772419090735,2.64769053,84.439,84.406,2.68151309]
[1772419090920,2.64769053,84.437,84.408,2.68151309]
[1772419092345,3.69657167,84.43,84.408,2.68151309]
[1772419092641,2.64769053,84.437,84.408,2.68151309]
[1772419093726,2.59073392,84.435,84.41,2.77083178]
[1772419098942,2.59073392,84.435,84.409,11.84707791]
[1772419098943,18.15707403,84.45,84.412,2.52747037]
[1772419099338,3.69657167,84.44,84.412,2.52747037]
[1772419099846,2.61916733,84.429,84.396,2.52747037]
[1772419100229,45.14122227,84.45,84.395,0.28432314]
[1772419100230,14.46250725,84.436,84.398,2.52747037]
[1772419100434,11.84333992,84.436,84.398,2.52747037]
[1772419101144,11.84333992,84.436,84.4,2.52747037]
[1772419101854,11.84333992,84.436,84.402,2.52747037]
[1772419102348,2.61916733,84.438,84.402,2.52747037]
[1772419103851,11.84069727,84.455,84.409,3.69383402]
[1772419104027,11.84069727,84.455,84.41,2.81179351]
[1772419105148,11.84069727,84.455,84.413,2.52747037]
[1772419105349,11.84069727,84.455,84.417,2.52747037]
[1772419105666,11.83994933,84.46,84.421,2.52747037]
[1772419105854,11.83994933,84.46,84.427,2.52747037]
[1772419106554,15.536521,84.46,84.427,2.52747037]
[1772419106968,11.83917955,84.466,84.427,2.52747037]
[1772419107252,2.61916733,84.473,84.437,2.52747037]
[1772419108025,3.69657167,84.48,84.447,2.52747037]
[1772419108026,2.61916733,84.479,84.447,2.52747037]
[1772419109354,14.45654582,84.479,84.449,2.52747037]
[1772419109750,2.61916733,84.478,84.449,2.52747037]
[1772419109952,2.61916733,84.469,84.443,2.52747037]
[1772419111149,2.61916733,84.467,84.443,2.52747037]
[1772419111446,2.61916733,84.467,84.438,3.69383402]
[1772419111650,2.61916733,84.467,84.435,2.52747037]
[1772419113353,2.61916733,84.465,84.437,2.52747037]
[1772419113958,2.61916733,84.469,84.437,2.52747037]
[1772419114372,2.61916733,84.459,84.437,2.52747037]
[1772419114573,3.69657167,84.46,84.437,2.52747037]
[1772419114987,2.61916733,84.465,84.437,2.52747037]
[1772419115160,11.8377921,84.476,84.44,2.52747037]
[1772419115563,2.61916733,84.475,84.442,2.52747037]
[1772419115761,2.61916733,84.475,84.445,0.28432314]
[1772419116063,2.61916733,84.475,84.446,2.52747037]
[1772419116484,11.83707302,84.481,84.446,2.52747037]
[1772419117278,2.61916733,84.482,84.446,2.52747037]
[1772419117675,2.61916733,84.481,84.448,2.52747037]
[1772419117988,2.61916733,84.479,84.448,2.52747037]
[1772419118582,3.69657167,84.48,84.448,2.52747037]
[1772419118772,11.83688917,84.482,84.448,2.52747037]
[1772419119565,11.83688917,84.482,84.45,2.52747037]
[1772419120983,11.83688917,84.482,84.432,3.69383402]
[1772419120984,2.61916733,84.515,84.457,2.52747037]
[1772419121187,2.61916733,84.515,84.474,0.28432314]
[1772419121384,2.61916733,84.515,84.477,2.52747037]
[1772419121895,0.1,84.52,84.491,2.52747037]
[1772419122065,2.61916733,84.539,84.507,2.47197073]
[1772419123084,2.61916733,84.539,84.509,2.47197073]
[1772419123595,12.08991768,84.542,84.486,2.47256119]
[1772419123596,2.61916733,84.519,84.486,2.47256119]
[1772419123767,2.61916733,84.519,84.49,0.14216157]
[1772419124382,2.61916733,84.519,84.462,3.69383402]
[1772419124383,2.61916733,84.519,84.492,0.28432314]
[1772419124587,2.61916733,84.519,84.494,0.28432314]
[1772419125079,2.61916733,84.517,84.493,11.83529996]
[1772419126589,2.61916733,84.524,84.496,2.75900553]
[1772419127103,2.61916733,84.524,84.49,12.11991318]
[1772419127393,2.61916733,84.524,84.49,11.83559004]
[1772419127579,2.61916733,84.524,84.49,14.31214268]
[1772419127978,2.61916733,84.524,84.491,2.47655264]
[1772419128372,2.61916733,84.524,84.492,0.28432314]
[1772419128578,2.6505843,84.533,84.499,2.47747168]
[1772419128778,2.6505843,84.529,84.499,2.47747168]
[1772419128976,2.6505843,84.529,84.498,11.83459963]
[1772419129292,2.6505843,84.519,84.487,2.47838017]
[1772419129590,2.6505843,84.519,84.486,2.76270331]
[1772419130685,2.6505843,84.519,84.488,2.76360136]
[1772419131484,2.6505843,84.538,84.488,2.76360136]
[1772419131684,2.6505843,84.537,84.488,2.76360136]
[1772419131987,2.6505843,84.537,84.487,41.42649164]
[1772419131988,2.6505843,84.537,84.491,2.7644891]
[1772419132887,2.6505843,84.537,84.493,2.76536664]
[1772419134772,2.6505843,84.537,84.498,2.76709161]
[1772419134990,2.7505843,84.611,84.501,5.36086188]
[1772419135209,3.69150414,84.6,84.508,2.57382349]
[1772419135390,3.69150414,84.61,84.527,2.85814663]
[1772419135728,3.69150414,84.61,84.5,20.9829849]
[1772419135729,2.7505843,84.611,84.553,2.57382349]
[1772419135874,3.69150414,84.64,84.577,2.57382349]
[1772419136074,11.81488439,84.639,84.596,2.57382349]
[1772419136379,3.69150414,84.64,84.596,2.57382349]
[1772419136574,29.53046514,84.659,84.603,0.28432314]
[1772419136875,14.51783597,84.66,84.596,2.57382349]
[1772419136876,8.75772065,84.65,84.596,2.57382349]
[1772419137077,2.6505843,84.649,84.604,0.28432314]
[1772419137291,2.6505843,84.639,84.585,11.82236282]
[1772419137477,8.75772065,84.64,84.585,12.10668596]
[1772419137478,2.6505843,84.619,84.585,12.10668596]
[1772419137678,2.6505843,84.619,84.586,2.57382349]
[1772419138491,2.6505843,84.599,84.544,2.57382349]
[1772419138706,2.6505843,84.599,84.557,2.85814663]
[1772419138991,2.6505843,84.599,84.559,0.28432314]